bitfinex-derivatives/quotes_SOLF0:USTF0_20250626
["timestamp","ask_amount","ask_price","bid_price","bid_amount"]
[1750916961504,3.46558913,144.29,144.23,35.16]
[1750916961803,10.39308913,144.29,144.24,6.9294]
[1750916962003,3.46558913,144.29,144.24,6.9294]
[1750916962610,3.46558913,144.29,144.25,6.9291]
[1750916963605,10.39308913,144.29,144.25,6.9291]
[1750916964217,6.9278,144.28,144.24,6.9296]
[1750916964410,38.62558913,144.29,144.22,38.62558913]
[1750916964917,45.55298913,144.29,144.24,6.9297]
[1750916965109,45.55298913,144.29,144.22,38.62558913]
[1750916965309,38.62558913,144.29,144.22,38.62558913]
[1750916966011,38.62558913,144.29,144.25,6.9288]
[1750916966708,6.9278,144.28,144.24,6.9296]
[1750916968319,6.9278,144.28,144.23,6.9301]
[1750916969117,6.9283,144.27,144.23,6.9301]
[1750916969309,10.39388913,144.27,144.22,35.16]
[1750916969707,3.46558913,144.27,144.24,6.9297]
[1750916969912,10.39338913,144.28,144.24,6.9297]
[1750916971421,3.46558913,144.28,144.25,6.9292]
[1750916971620,35.16,144.29,144.22,38.62558913]
[1750916971818,5.76568913,144.32,144.24,3.46558913]
[1750916972021,5.76568913,144.32,144.26,3.46558913]
[1750916972424,5.76568913,144.32,144.28,6.9275]
[1750916972619,2.3001,144.32,144.28,6.9275]
[1750916972918,2.3001,144.32,144.29,6.9272]
[1750916973116,35.16,144.33,144.29,6.9272]
[1750916975341,42.0854,144.33,144.29,6.9272]
[1750916977739,6.926,144.32,144.28,6.9277]
[1750916978040,3.46558913,144.32,144.26,38.68558913]
[1750916978243,3.46558913,144.32,144.29,6.9271]
[1750916980240,35.16,144.33,144.29,6.9271]
[1750916981042,42.0855,144.33,144.29,6.9271]
[1750916982829,6.9259,144.32,144.29,6.9271]
[1750916983034,3.46558913,144.32,144.26,35.22]
[1750916983230,6.9265,144.31,144.26,35.22]
[1750916984239,10.39158913,144.32,144.26,35.22]
[1750916985040,10.39158913,144.32,144.28,6.9278]
[1750916986247,6.9264,144.31,144.28,6.9278]
[1750916986450,6.9264,144.31,144.26,35.22]
[1750916986451,6.9264,144.31,144.27,6.9281]
[1750916987942,38.62558913,144.33,144.26,38.68558913]
[1750916988444,6.9262,144.32,144.26,38.68558913]
[1750916988942,6.9262,144.32,144.27,6.9279]
[1750916989740,6.9262,144.32,144.28,6.9278]
[1750916993242,6.9264,144.31,144.28,6.9278]
[1750916996453,3.46558913,144.31,144.25,2.2642]
[1750916996649,7.24525513,144.3,144.25,2.2642]
[1750916996948,6.9273,144.29,144.25,9.1931]
[1750916998249,3.46558913,144.31,144.25,2.2642]
[1750916998647,6.9268,144.3,144.26,6.9287]
[1750917000852,6.9268,144.3,144.27,6.9283]
[1750917001158,10.39198913,144.31,144.27,6.9283]
[1750917002556,10.39198913,144.31,144.28,6.9278]
[1750917003762,4.85728827,144.32,144.29,6.9272]
[1750917004056,38.62558913,144.33,144.25,18.61095587]
[1750917004358,38.62558913,144.33,144.3,6.9268]
[1750917004559,38.62558913,144.33,144.27,35.14]
[1750917005150,45.55108913,144.33,144.29,6.9272]
[1750917005353,45.55108913,144.33,144.27,35.14]
[1750917005563,7.24578713,144.32,144.27,35.14]
[1750917005760,2.2399,144.36,144.27,35.14]
[1750917005761,38.60558913,144.36,144.29,3.46558913]
[1750917006077,12.13265681,144.35,144.29,3.46558913]
[1750917006363,10.71360419,144.34,144.27,38.60558913]
[1750917006558,3.46558913,144.34,144.27,38.60558913]
[1750917007061,7.24650277,144.33,144.27,38.60558913]
[1750917007263,3.46558913,144.34,144.27,38.60558913]
[1750917007464,14.17217627,144.33,144.28,6.9275]
[1750917007663,6.9257,144.33,144.28,6.9275]
[1750917007960,3.46558913,144.34,144.28,6.9275]
[1750917008266,7.24699565,144.33,144.28,6.9275]
[1750917008459,3.46558913,144.34,144.29,6.9272]
[1750917008767,14.173075,144.33,144.29,6.9272]
[1750917008965,6.9257,144.33,144.29,6.9272]
[1750917014673,6.9259,144.32,144.29,6.9272]
[1750917015171,6.9256,144.33,144.29,6.9272]
[1750917016372,2.55306722,144.32,144.29,6.9272]
[1750917016571,6.9256,144.33,144.29,6.9272]
[1750917016772,2.55363168,144.32,144.29,6.9272]
[1750917016974,10.39058913,144.34,144.3,6.9267]
[1750917017167,7.26711543,144.33,144.3,6.9267]
[1750917017368,3.46558913,144.34,144.27,35.14]
[1750917017673,7.26798091,144.33,144.27,35.14]
[1750917017973,3.46558913,144.34,144.27,35.14]
[1750917018169,7.26841831,144.33,144.3,6.9265]
[1750917018463,10.39048913,144.34,144.3,6.9265]
[1750917018673,7.2681184,144.33,144.3,6.9265]
[1750917018874,3.46558913,144.35,144.28,3.46558913]
[1750917019077,12.17209362,144.34,144.28,3.46558913]
[1750917019271,2.55410627,144.33,144.29,2.4214]
[1750917019474,4.90373865,144.34,144.29,2.4214]
[1750917019775,35.14,144.36,144.3,5.76858913]
[1750917019970,7.27572262,144.35,144.3,5.76858913]
[1750917020175,35.14,144.36,144.3,5.76858913]
[1750917020371,3.46558913,144.37,144.31,35.14]
[1750917020569,7.27277728,144.36,144.33,6.925]
[1750917020874,3.46558913,144.37,144.33,6.925]
[1750917021073,7.27278149,144.36,144.33,6.925]
[1750917021274,3.46558913,144.37,144.33,6.925]
[1750917021473,7.28512989,144.36,144.33,6.925]
[1750917021673,3.46558913,144.37,144.33,6.925]
[1750917022877,10.38908913,144.37,144.33,6.925]
[1750917023273,35.14,144.42,144.31,35.14]
[1750917023466,15.66658753,144.41,144.33,3.46558913]
[1750917023670,12.2009984,144.4,144.33,3.46558913]
[1750917023870,7.29089084,144.39,144.35,6.9241]
[1750917024077,4.90943165,144.4,144.35,6.9241]
[1750917024377,7.29017343,144.39,144.35,6.9241]
[1750917024581,4.90629562,144.4,144.34,6.9249]
[1750917024766,12.19074841,144.39,144.34,6.9249]
[1750917025076,2.55405679,144.38,144.34,6.9249]
[1750917025278,6.9231,144.38,144.34,6.9249]
[1750917029876,6.9226,144.39,144.36,6.9239]
[1750917030179,38.60558913,144.42,144.33,3.46558913]
[1750917030382,7.30580508,144.41,144.34,39.7916]
[1750917030582,38.60558913,144.42,144.34,39.7916]
[1750917030880,6.9222,144.4,144.36,6.9236]
[1750917031081,6.9222,144.4,144.35,2.2772]
[1750917031583,6.9217,144.41,144.37,6.9234]
[1750917033286,35.14,144.42,144.35,5.74278913]
[1750917034179,42.0611,144.42,144.38,6.9227]
[1750917034374,39.85901245,144.45,144.35,2.2772]
[1750917034682,3.46558913,144.43,144.36,3.46558913]
[1750917035088,6.9214,144.42,144.38,6.9229]
[1750917035480,3.46558913,144.43,144.38,6.9229]
[1750917035683,6.9211,144.42,144.37,6.9233]
[1750917035884,3.46558913,144.43,144.37,6.9233]
[1750917036180,6.9216,144.41,144.38,6.9229]
[1750917036386,3.46558913,144.43,144.38,6.9229]
[1750917036780,6.9212,144.42,144.38,6.9229]
[1750917038487,10.38638913,144.43,144.39,6.9224]
[1750917038688,3.46558913,144.43,144.39,6.9224]
[1750917038879,3.46558913,144.43,144.35,5.74278913]
[1750917039288,6.9211,144.42,144.38,6.9227]
[1750917041785,10.38638913,144.43,144.39,6.9224]
[1750917042291,6.9211,144.42,144.39,6.9224]
[1750917042493,6.9211,144.42,144.35,2.2772]
[1750917042695,6.9211,144.42,144.35,5.74278913]
[1750917042994,6.9211,144.42,144.38,6.9226]
[1750917045093,4.75181275,144.46,144.35,2.2772]
[1750917045286,3.46558913,144.44,144.35,5.74278913]
[1750917045487,3.46558913,144.42,144.35,5.74278913]
[1750917045791,3.46558913,144.42,144.35,2.2772]
[1750917046592,6.922,144.4,144.37,6.9233]
[1750917047393,6.9226,144.39,144.35,2.2772]
[1750917047896,3.46558913,144.4,144.35,2.2772]
[1750917048098,6.9224,144.4,144.36,6.9239]
[1750917048287,10.38798913,144.4,144.36,6.9239]
[1750917051692,10.38798913,144.4,144.37,6.9234]
[1750917052495,3.46558913,144.4,144.37,6.9234]
[1750917053089,350.0,144.56,144.35,2.2772]
[1750917053293,3.46558913,144.41,144.35,2.2772]
[1750917054593,10.38748913,144.41,144.37,6.9234]
[1750917055591,10.38748913,144.41,144.35,2.2772]
[1750917056393,10.38748913,144.41,144.37,6.9232]
[1750917057600,6.9219,144.41,144.37,6.9232]
[1750917057799,10.38748913,144.41,144.37,6.9232]
[1750917062697,6.9208,144.43,144.35,2.2772]
[1750917062902,38.57169884,144.44,144.35,2.2772]
[1750917063102,6.9212,144.42,144.39,6.9225]
[1750917064304,6.9212,144.42,144.38,6.9228]
[1750917064500,6.9216,144.41,144.38,6.9228]
[1750917064694,6.9216,144.41,144.35,2.2772]
[1750917065603,6.9216,144.41,144.37,6.9233]
[1750917069601,3.45169884,144.42,144.35,2.2772]
[1750917069913,3.45169884,144.4,144.32,3.45169884]
[1750917070211,47.4142329,144.39,144.32,3.45169884]
[1750917070409,14.2690827,144.38,144.35,6.9244]
[1750917070603,38.57169884,144.39,144.35,6.9244]
[1750917070804,2.57034011,144.38,144.35,6.9244]
[1750917071004,45.49459884,144.39,144.35,6.9244]
[1750917071201,7.34509127,144.38,144.35,6.9244]
[1750917071403,42.0429,144.39,144.35,6.9244]
[1750917071604,7.34538328,144.38,144.35,6.9244]
[1750917071806,42.0429,144.39,144.35,6.9244]
[1750917072004,7.34538328,144.38,144.35,6.9244]
[1750917072206,42.0429,144.39,144.35,6.9244]
[1750917073220,2.56898575,144.38,144.36,6.9235]
[1750917073405,35.12,144.39,144.36,6.9235]
[1750917074015,42.0425,144.39,144.35,6.9243]
[1750917075809,42.0425,144.39,144.36,6.9239]
[1750917077113,42.0425,144.39,144.35,6.9243]
[1750917077718,45.49530315,144.39,144.35,6.9243]
[1750917080214,35.12,144.39,144.32,3.45280315]
[1750917080517,38.57280315,144.42,144.34,3.45280315]
[1750917080822,38.57280315,144.42,144.35,42.1573]
[1750917081117,38.57280315,144.42,144.36,3.45280315]
[1750917083319,3.45280315,144.44,144.36,3.45280315]
[1750917083530,7.34504719,144.43,144.36,3.45280315]
[1750917083718,3.45280315,144.44,144.36,3.45280315]
[1750917083916,7.34531809,144.43,144.4,6.9216]
[1750917084122,3.45280315,144.44,144.4,6.9216]
[1750917084420,7.34480705,144.43,144.4,6.9216]
[1750917084621,3.45280315,144.44,144.4,6.9216]
[1750917085622,3.45280315,144.44,144.36,3.45280315]
[1750917085829,35.12,144.45,144.38,3.45280315]
[1750917086121,7.34419988,144.44,144.38,3.45280315]
[1750917086322,35.12,144.45,144.41,6.9212]
[1750917086524,7.34314977,144.44,144.41,6.9212]
[1750917086723,35.12,144.45,144.41,6.9212]
[1750917087023,7.34314977,144.44,144.41,6.9212]
[1750917087218,35.12,144.45,144.41,6.9212]
[1750917087422,7.34162274,144.44,144.41,6.9212]
[1750917087624,35.12,144.48,144.39,35.12]
[1750917087826,15.73238375,144.47,144.4,35.12]
[1750917088123,19.1990806,144.46,144.41,6.9212]
[1750917088326,6.9195,144.46,144.41,6.9212]
[1750917088923,3.45280315,144.47,144.4,35.12]
[1750917089227,7.34053343,144.46,144.4,35.12]
[1750917089427,3.45280315,144.47,144.41,3.45280315]
[1750917089619,3.45280315,144.47,144.41,8.24910315]
[1750917090224,35.12,144.48,144.45,6.9196]
[1750917090425,35.12,144.48,144.41,8.24910315]
[1750917090622,117.50974994,144.49,144.41,8.24910315]
[1750917090827,117.50974994,144.49,144.42,3.45280315]
[1750917091022,3.45280315,144.48,144.42,3.45280315]
[1750917092231,10.37130315,144.48,144.43,6.9204]
[1750917092834,6.9187,144.47,144.43,6.9204]
[1750917093033,8.38071751,144.48,144.42,6.921]
[1750917093228,2.56122183,144.47,144.42,6.921]
[1750917093425,8.38071751,144.48,144.42,6.921]
[1750917093733,3.45280315,144.46,144.41,6.9214]
[1750917094432,10.37210315,144.46,144.41,6.9214]
[1750917097130,10.37210315,144.46,144.42,6.921]
[1750917097836,3.45280315,144.46,144.42,6.921]
[1750917098530,35.1,144.47,144.4,40.93490315]
[1750917098733,35.1,144.47,144.42,3.45280315]
[1750917098933,3.45280315,144.48,144.42,3.45280315]
[1750917099130,3.45280315,144.48,144.44,6.92]
[1750917101041,3.45280315,144.48,144.45,6.9196]
[1750917101931,10.37110315,144.48,144.44,6.92]
[1750917102123,10.37110315,144.48,144.42,3.45280315]
[1750917103039,10.37110315,144.48,144.44,6.9201]
[1750917105138,6.9183,144.48,144.44,6.9201]
[1750917105338,10.37110315,144.48,144.44,6.9201]
[1750917111937,6.9183,144.48,144.44,6.9201]
[1750917114648,6.9187,144.47,144.44,6.9201]
[1750917115051,120.96255309,144.49,144.44,6.9201]
[1750917115351,6.9184,144.48,144.45,6.9196]
[1750917116970,6.9184,144.48,144.44,6.9199]
[1750917118965,120.96255309,144.49,144.41,4.6034]
[1750917119161,3.45280315,144.47,144.41,4.6034]
[1750917119769,10.37160315,144.47,144.43,6.9206]
[1750917122167,12.94768546,144.47,144.43,6.9206]
[1750917122761,6.9192,144.46,144.43,6.9206]
[1750917123162,6.9197,144.45,144.4,37.4821]
[1750917123373,3.45280315,144.47,144.4,37.4821]
[1750917123766,6.9195,144.46,144.42,6.9208]
[1750917124262,9.1269222,144.46,144.42,6.9208]
[1750917124770,9.1269222,144.46,144.42,9.1282222]
[1750917126556,9.1269222,144.46,144.42,6.9208]
[1750917127774,2.2074222,144.46,144.43,6.9205]
[1750917128772,9.1266222,144.46,144.42,6.9209]
[1750917128976,2.2074222,144.46,144.41,2.2074222]
[1750917129365,2.2074222,144.46,144.43,6.9205]
[1750917129864,2.2074222,144.45,144.43,6.9205]
[1750917131669,9.1266222,144.46,144.43,6.9205]
[1750917132170,7.36997792,144.45,144.43,6.9205]
[1750917132372,9.1266222,144.46,144.43,6.9205]
[1750917132573,7.37061651,144.45,144.43,6.9205]
[1750917132775,9.1266222,144.46,144.43,6.9205]
[1750917133070,7.37192196,144.45,144.43,6.9205]
[1750917133267,2.2074222,144.46,144.43,6.9205]
[1750917133470,7.37264058,144.45,144.43,6.9205]
[1750917133670,2.2074222,144.46,144.43,6.9205]
[1750917135579,2.2074222,144.46,144.44,6.92]
[1750917135775,2.2074222,144.47,144.44,6.92]
[1750917136277,124.42754994,144.49,144.43,2.2074222]
[1750917136477,14.54768539,144.48,144.43,2.2074222]
[1750917136677,2.2074222,144.48,144.43,2.2074222]
[1750917137081,2.2074222,144.48,144.45,6.9193]
[1750917139082,7.37716631,144.47,144.45,6.9193]
[1750917139380,2.2074222,144.48,144.45,6.9193]
[1750917139571,2.2074222,144.47,144.45,6.9193]
[1750917139768,2.2074222,144.48,144.45,6.9193]
[1750917140482,124.42784994,144.49,144.45,6.9193]
[1750917140681,9.59023653,144.48,144.45,6.9193]
[1750917140883,2.2074222,144.48,144.45,6.9193]
[1750917142182,2.2074222,144.47,144.45,6.9193]
[1750917142482,124.42784994,144.49,144.45,6.9193]
[1750917142687,2.2074222,144.47,144.45,6.9193]
[1750917143987,124.42784994,144.49,144.45,6.9193]
[1750917144180,2.2074222,144.47,144.45,6.9193]
[1750917145284,2.2074222,144.46,144.44,6.9201]
[1750917146486,6.9183,144.48,144.44,6.9201]
[1750917146685,2.2074222,144.46,144.44,6.9201]
[1750917147887,6.9183,144.48,144.44,6.9201]
[1750917148089,9.58439405,144.47,144.44,6.9201]
[1750917148386,2.2074222,144.47,144.44,6.9201]
[1750917148687,2.2074222,144.47,144.45,6.9196]
[1750917150289,124.42764994,144.49,144.45,6.9196]
[1750917150587,2.2074222,144.47,144.45,6.9196]
[1750917151791,2.2074222,144.47,144.44,6.92]
[1750917152580,2.2074222,144.47,144.45,6.9196]
[1750917154280,41.9974,144.5,144.46,6.9191]
[1750917154481,7.37746458,144.49,144.46,6.9191]
[1750917154680,2.2074222,144.48,144.46,6.9191]
[1750917156586,35.08,144.5,144.45,2.2074222]
[1750917156790,35.08,144.5,144.46,2.2074222]
[1750917156791,7.37841832,144.49,144.46,2.2074222]
[1750917157093,37.2874222,144.5,144.46,2.2074222]
[1750917157292,7.37831657,144.49,144.44,35.02]
[1750917157490,2.2074222,144.46,144.4,2.3621]
[1750917157693,2.2074222,144.45,144.41,37.2274222]
[1750917157888,2.2074222,144.46,144.43,6.9202]
[1750917159682,2.2074222,144.47,144.44,6.92]
[1750917162490,6.9183,144.48,144.44,6.92]
[1750917162694,2.2074222,144.47,144.44,6.92]
[1750917162896,2.2074222,144.46,144.43,6.9204]
[1750917163195,2.2074222,144.45,144.41,37.2274222]
[1750917163588,2.2074222,144.45,144.41,2.2074222]
[1750917163790,2.2074222,144.44,144.4,39.5895222]
[1750917164686,2.2074222,144.44,144.41,6.9215]
[1750917168492,2.2074222,144.45,144.42,6.9209]
[1750917171794,41.9393,144.46,144.42,6.9209]
[1750917172002,2.2074222,144.45,144.42,6.9209]
[1750917173696,2.2074222,144.45,144.43,6.9205]
[1750917174793,37.3777,144.49,144.44,2.2074222]
[1750917175000,2.2074222,144.45,144.42,2.2891]
[1750917175196,2.2074222,144.45,144.41,2.2074222]
[1750917175407,2.2074222,144.45,144.42,6.9207]
[1750917176294,2.2074222,144.44,144.42,6.9207]
[1750917176603,2.2074222,144.43,144.41,6.9215]
[1750917176893,2.2074222,144.43,144.4,37.3821]
[1750917176894,2.2074222,144.43,144.4,44.304]
[1750917177098,2.2074222,144.41,144.38,2.2891]
[1750917177696,2.2074222,144.42,144.39,6.9224]
[1750917177894,4.94081627,144.43,144.39,2.2074222]
[1750917178096,2.2074222,144.43,144.39,2.2074222]
[1750917178593,2.2074222,144.43,144.4,6.9219]
[1750917179301,2.2074222,144.43,144.41,6.9215]
[1750917179806,2.2074222,144.43,144.4,6.9219]
[1750917180101,6.9202,144.44,144.4,6.9219]
[1750917180287,2.2074222,144.42,144.4,6.9219]
[1750917181805,2.2074222,144.42,144.39,6.9223]
[1750917182703,2.2074222,144.41,144.39,6.9223]
[1750917183504,2.2074222,144.42,144.39,6.9223]
[1750917189306,2.2074222,144.42,144.4,6.922]
[1750917191709,2.2074222,144.44,144.39,4.4590222]
[1750917192305,2.2074222,144.43,144.4,6.9219]
[1750917192610,2.2074222,144.43,144.39,4.4590222]
[1750917193505,2.2074222,144.43,144.4,6.9219]
[1750917193711,2.2074222,144.42,144.4,6.9219]
[1750917194406,2.2074222,144.42,144.39,9.1739]
[1750917194613,2.2074222,144.41,144.39,9.1739]
[1750917195816,2.2074222,144.4,144.37,2.3781]
[1750917196008,2.2074222,144.4,144.36,35.02]
[1750917196209,2.2074222,144.39,144.35,2.2074222]
[1750917196514,2.2074222,144.39,144.36,6.9238]
[1750917197011,2.2074222,144.38,144.35,6.9244]
[1750917197211,2.2074222,144.37,144.34,34.98]
[1750917197898,2.2074222,144.38,144.35,6.9243]
[1750917201519,2.2074222,144.36,144.26,2.2074222]
[1750917201816,2.2074222,144.3,144.27,2.2959]
[1750917202022,2.2074222,144.3,144.28,6.9278]
[1750917202219,2.2074222,144.3,144.27,2.2959]
[1750917202808,2.2074222,144.3,144.28,6.9278]
[1750917203720,34.98,144.35,144.27,2.2959]
[1750917203911,2.2074222,144.31,144.27,2.2959]
[1750917204115,2.2074222,144.31,144.27,4.5033222]
[1750917204417,3.45585153,144.33,144.29,6.927]
[1750917204814,3.45585153,144.33,144.3,6.9267]
[1750917205017,3.45585153,144.33,144.27,2.2959]
[1750917205615,3.45585153,144.33,144.31,6.9262]
[1750917207715,3.45585153,144.33,144.27,2.2959]
[1750917208518,3.45585153,144.33,144.31,6.926]
[1750917209618,3.45585153,144.33,144.32,6.9259]
[1750917210418,34.98,144.36,144.34,6.9249]
[1750917211518,34.98,144.36,144.35,6.9244]
[1750917212720,34.98,144.36,144.34,6.9248]
[1750917214115,34.98,144.36,144.35,6.9244]
[1750917216520,34.98,144.36,144.34,6.9248]
[1750917217218,34.98,144.36,144.33,6.9252]
[1750917217522,3.45585153,144.35,144.3,34.98]
[1750917218611,34.98,144.36,144.3,34.98]
[1750917220526,34.98,144.36,144.34,6.9247]
[1750917220819,38.39585153,144.39,144.31,3.45585153]
[1750917221016,38.39585153,144.39,144.31,8.14745153]
[1750917221215,38.39585153,144.39,144.35,6.924]
[1750917221522,38.39585153,144.39,144.32,2.2754]
[1750917222126,45.31835153,144.39,144.32,2.2754]
[1750917222325,41.8625,144.39,144.32,2.2754]
[1750917222624,3.45585153,144.38,144.35,6.9241]
[1750917224537,3.45585153,144.38,144.36,6.9239]
[1750917227640,3.45585153,144.38,144.37,6.9235]
[1750917227929,34.94,144.41,144.35,3.45585153]
[1750917228628,34.94,144.41,144.38,6.9227]
[1750917229234,34.94,144.41,144.37,6.9234]
[1750917230428,34.94,144.41,144.38,6.923]
[1750917236636,34.94,144.41,144.39,6.9224]
[1750917236836,3.45585153,144.42,144.35,3.45585153]
[1750917237038,3.45585153,144.42,144.36,4.6256]
[1750917237432,3.45585153,144.42,144.37,2.3956]
[1750917237948,3.45585153,144.42,144.4,6.9217]
[1750917239532,3.45585153,144.42,144.39,6.9224]
[1750917240228,3.45585153,144.42,144.38,6.9229]
[1750917241639,3.45585153,144.42,144.39,6.9225]
[1750917243236,3.45585153,144.42,144.38,6.9228]
[1750917244240,10.37675153,144.43,144.38,6.9228]
[1750917246525,10.37675153,144.43,144.39,6.9224]
[1750917252333,2.20868182,144.41,144.39,6.9224]
[1750917252534,2.20868182,144.4,144.37,2.3956]
[1750917252932,2.20868182,144.41,144.37,4.60428182]
[1750917253641,34.94,144.44,144.39,6.9222]
[1750917253844,2.20868182,144.41,144.39,6.9222]
[1750917256243,3.45088026,144.43,144.39,6.9222]
[1750917256437,10.37168026,144.43,144.39,6.9222]
[1750917259350,41.8603,144.44,144.4,6.9217]
[1750917259548,45.31118026,144.44,144.4,6.9217]
[1750917259748,3.45088026,144.42,144.37,2.3956]
[1750917260046,10.37228026,144.42,144.37,9.3186]
[1750917260340,3.45088026,144.4,144.34,34.94]
[1750917260547,3.45088026,144.38,144.35,6.9241]
[1750917261740,3.45088026,144.38,144.34,6.9248]
[1750917263250,3.45088026,144.38,144.35,6.9244]
[1750917270054,3.45088026,144.38,144.36,6.9239]
[1750917270756,3.45088026,144.39,144.36,6.9239]
[1750917272549,10.37338026,144.39,144.36,6.9239]
[1750917273155,3.45088026,144.39,144.36,6.9239]
[1750917274449,10.37348026,144.39,144.36,6.9239]
[1750917275450,6.9231,144.38,144.35,6.9243]
[1750917276957,10.37358026,144.39,144.35,6.9243]
[1750917277654,34.9,144.4,144.33,3.45088026]
[1750917277854,34.9,144.4,144.35,3.45088026]
[1750917278359,37.10908214,144.4,144.35,2.20908214]
[1750917279255,37.10908214,144.4,144.38,6.9229]
[1750917280261,34.9,144.4,144.38,6.9229]
[1750917281957,34.9,144.4,144.37,6.9233]
[1750917283663,34.9,144.4,144.38,6.9229]
[1750917283963,34.9,144.4,144.35,2.282]
[1750917284161,38.35149461,144.4,144.35,2.282]
[1750917285655,45.27359461,144.4,144.36,6.9238]
[1750917285857,38.35149461,144.4,144.35,2.282]
[1750917287562,38.35149461,144.4,144.37,6.9233]
[1750917289062,38.35149461,144.4,144.35,2.282]
[1750917289261,45.27379461,144.4,144.35,2.282]
[1750917289861,3.45149461,144.38,144.31,34.84]
[1750917290463,3.45149461,144.38,144.34,6.9247]
[1750917291471,3.45149461,144.38,144.32,3.45149461]
[1750917291766,45.27359461,144.4,144.32,3.45149461]
[1750917291966,38.35149461,144.4,144.32,3.45149461]
[1750917292268,38.35149461,144.4,144.36,6.9236]
[1750917292569,45.27359461,144.4,144.36,6.9236]
[1750917294663,45.27359461,144.4,144.35,6.9243]
[1750917296970,6.9227,144.39,144.35,6.9243]
[1750917297573,45.27369461,144.4,144.32,3.45149461]
[1750917298667,45.27369461,144.4,144.36,6.9238]
[1750917300373,38.35149461,144.4,144.32,3.45149461]
[1750917300574,3.45149461,144.38,144.31,34.84]
[1750917300774,10.37449461,144.38,144.34,6.9246]
[1750917301985,3.45149461,144.38,144.34,6.9246]
[1750917302787,3.45149461,144.38,144.35,6.9244]
[1750917304883,34.9,144.4,144.36,6.9239]
[1750917306378,41.8222,144.4,144.36,6.9239]
[1750917306786,34.9,144.4,144.36,6.9239]
[1750917307289,34.9,144.4,144.37,6.9234]
[1750917308985,34.9,144.4,144.38,6.9228]
[1750917309188,34.9,144.4,144.32,3.45149461]
[1750917310480,34.9,144.4,144.36,6.9236]
[1750917310984,34.9,144.4,144.32,3.45149461]
[1750917311388,34.9,144.4,144.34,3.45149461]
[1750917312290,34.9,144.4,144.34,38.25149461]
[1750917313393,34.9,144.4,144.37,6.9232]
[1750917315195,34.9,144.4,144.34,34.8]
[1750917315196,34.9,144.4,144.36,6.9238]
[1750917315387,2.54997762,144.39,144.36,6.9238]
[1750917315690,34.9,144.4,144.36,6.9238]
[1750917315887,2.55003514,144.39,144.36,6.9238]
[1750917316089,34.9,144.4,144.36,6.9238]
[1750917316282,4.75942224,144.39,144.36,6.9238]
[1750917316478,2.2093871,144.38,144.36,6.9238]
[1750917318597,34.9,144.4,144.36,6.9238]
[1750917318789,2.2093871,144.38,144.36,6.9238]
[1750917319995,2.2093871,144.37,144.35,6.9243]
[1750917322695,37.1093871,144.4,144.35,2.2093871]
[1750917323286,34.9,144.4,144.36,2.2093871]
[1750917323496,2.2093871,144.41,144.36,2.2093871]
[1750917323895,2.2093871,144.41,144.38,6.9226]
[1750917324094,2.2093871,144.4,144.38,6.9226]
[1750917324295,38.25141673,144.42,144.38,6.9226]
[1750917325097,38.25141673,144.42,144.39,6.9223]
[1750917331203,38.25141673,144.42,144.4,6.922]
[1750917332296,38.25141673,144.42,144.35,7.0353]
[1750917332495,3.45141673,144.4,144.35,7.0353]
[1750917333696,3.45141673,144.4,144.37,6.9231]
[1750917333900,3.45238025,144.4,144.37,6.9231]
[1750917335004,3.45238025,144.4,144.38,6.9228]
[1750917336107,34.8,144.42,144.38,6.9228]
[1750917336305,38.25238025,144.42,144.39,6.9225]
[1750917336604,38.25238025,144.42,144.35,2.2982]
[1750917336804,38.25238025,144.42,144.38,6.9228]
[1750917339308,38.25238025,144.42,144.39,6.9225]
[1750917340901,38.25238025,144.42,144.38,6.9228]
[1750917341210,45.17348025,144.42,144.38,6.9228]
[1750917343519,38.25238025,144.42,144.35,2.2982]
[1750917344217,2.20884887,144.41,144.39,6.9225]
[1750917347017,2.20884887,144.41,144.38,6.9228]
[1750917348324,2.20884887,144.4,144.38,6.9228]
[1750917352020,2.20884887,144.4,144.37,6.9233]
[1750917353124,2.20884887,144.39,144.36,6.9238]
[1750917353423,2.20884887,144.38,144.35,2.2982]